[Event "Titled Tuesday Blitz July 05 Late 2022"]
[White "Storme, Isak"]
[Black "Fishbein, Alexander"]
[WhiteFideId "1728113"]
[BlackFideId "2000377"]
[WhiteElo "2205"]
[BlackElo "2410"]
[Result "1-0"]
[Round "06"]
[TimeControl "180+1"]
[Date "2022.07.06"]
[WhiteClock "0:00:23"]
[BlackClock "0:00:02"]

1. Nf3 {[%clk 0:02:56]}  Nf6 {[%clk 0:02:59]} 2. b3 {[%clk 0:02:55]}  g6 {[%clk 0:02:55]} 3. Bb2 {[%clk 0:02:50]}  Bg7 {[%clk 0:02:55]} 4. e3 {[%clk 0:02:50]}  O-O {[%clk 0:02:55]} 5. c4 {[%clk 0:02:50]}  d6 {[%clk 0:02:56]} 6. Be2 {[%clk 0:02:49]}  e5 {[%clk 0:02:56]} 7. d4 {[%clk 0:02:47]}  e4 {[%clk 0:02:46]} 8. Nfd2 {[%clk 0:02:47]}  Re8 {[%clk 0:02:46]} 9. Nc3 {[%clk 0:02:46]}  h5 {[%clk 0:02:42]} 10. Qc2 {[%clk 0:02:45]}  Bf5 {[%clk 0:02:41]} 11. h3 {[%clk 0:02:45]}  Nc6 {[%clk 0:02:39]} 12. a3 {[%clk 0:02:31]}  Nxd4 {[%clk 0:02:34]} 13. exd4 {[%clk 0:02:25]}  e3 {[%clk 0:02:34]} 14. Qc1 {[%clk 0:02:11]}  exd2+ {[%clk 0:02:26]} 15. Qxd2 {[%clk 0:02:12]}  Ne4 {[%clk 0:02:03]} 16. Nxe4 {[%clk 0:02:11]}  Bxe4 {[%clk 0:02:03]} 17. O-O {[%clk 0:02:10]}  d5 {[%clk 0:01:55]} 18. Rfe1 {[%clk 0:02:01]}  c6 {[%clk 0:01:42]} 19. c5 {[%clk 0:01:48]}  Qh4 {[%clk 0:01:35]} 20. b4 {[%clk 0:01:45]}  Re7 {[%clk 0:01:29]} 21. Bf1 {[%clk 0:01:38]}  Rae8 {[%clk 0:01:27]} 22. b5 {[%clk 0:01:33]}  Kh7 {[%clk 0:01:15]} 23. a4 {[%clk 0:01:33]}  Bh6 {[%clk 0:01:12]} 24. Qc3 {[%clk 0:01:33]}  Bf5 {[%clk 0:00:56]} 25. Rxe7 {[%clk 0:01:29]}  Rxe7 {[%clk 0:00:55]} 26. Re1 {[%clk 0:01:25]}  Re4 {[%clk 0:00:37]} 27. Rxe4 {[%clk 0:01:21]}  Bxe4 {[%clk 0:00:37]} 28. a5 {[%clk 0:01:17]}  cxb5 {[%clk 0:00:32]} 29. Bxb5 {[%clk 0:01:15]}  a6 {[%clk 0:00:31]} 30. Bf1 {[%clk 0:01:11]}  Qf4 {[%clk 0:00:30]} 31. c6 {[%clk 0:01:06]}  bxc6 {[%clk 0:00:29]} 32. Qxc6 {[%clk 0:01:07]}  Qd2 {[%clk 0:00:25]} 33. Qc3 {[%clk 0:01:05]}  Qd1 {[%clk 0:00:21]} 34. Ba3 {[%clk 0:00:52]}  Bd2 {[%clk 0:00:20]} 35. Qc7 {[%clk 0:00:50]}  Kg8 {[%clk 0:00:09]} 36. Qd8+ {[%clk 0:00:49]}  Kh7 {[%clk 0:00:08]} 37. Qf8 {[%clk 0:00:48]}  Bd3 {[%clk 0:00:03]} 38. Qxf7+ {[%clk 0:00:47]}  Kh6 {[%clk 0:00:04]} 39. Bf8+ {[%clk 0:00:46]}  Kg5 {[%clk 0:00:04]} 40. Be7+ {[%clk 0:00:33]}  Kh6 {[%clk 0:00:04]} 41. Bf8+ {[%clk 0:00:31]}  Kg5 {[%clk 0:00:03]} 42. Qxd5+ {[%clk 0:00:24]}  Kf6 {[%clk 0:00:02]} 43. Qe5+ {[%clk 0:00:23]}  Kf7 {[%clk 0:00:02]} 44. Qe7+ {[%clk 0:00:23]} 1-0


[Site "https://www.chess.com"]

[Event "Titled Tuesday Blitz July 05 Late 2022"]
[White "Tanenbaum, Zachary"]
[Black "Przybylski, Wojciech"]
[WhiteFideId "2060850"]
[BlackFideId "1117599"]
[WhiteElo "2175"]
[BlackElo "2133"]
[Result "1-0"]
[Round "06"]
[TimeControl "180+1"]
[Date "2022.07.05"]
[WhiteClock "0:00:12"]
[BlackClock "0:00:14"]

1. e4 {[%clk 0:03:00]}  e5 {[%clk 0:02:54]} 2. Nf3 {[%clk 0:03:00]}  Nc6 {[%clk 0:02:53]} 3. Bc4 {[%clk 0:03:01]}  Nf6 {[%clk 0:02:52]} 4. d3 {[%clk 0:03:01]}  Be7 {[%clk 0:02:51]} 5. O-O {[%clk 0:03:01]}  O-O {[%clk 0:02:51]} 6. Re1 {[%clk 0:03:01]}  d6 {[%clk 0:02:51]} 7. a4 {[%clk 0:03:02]}  Be6 {[%clk 0:02:51]} 8. Nbd2 {[%clk 0:03:02]}  Qd7 {[%clk 0:02:50]} 9. c3 {[%clk 0:03:02]}  h6 {[%clk 0:02:50]} 10. a5 {[%clk 0:03:02]}  a6 {[%clk 0:02:49]} 11. Qb3 {[%clk 0:03:03]}  Nd8 {[%clk 0:02:49]} 12. d4 {[%clk 0:03:02]}  exd4 {[%clk 0:02:46]} 13. cxd4 {[%clk 0:03:03]}  Bxc4 {[%clk 0:02:44]} 14. Nxc4 {[%clk 0:03:04]}  Re8 {[%clk 0:02:42]} 15. d5 {[%clk 0:02:32]}  Bf8 {[%clk 0:02:38]} 16. Qd3 {[%clk 0:02:25]}  Ng4 {[%clk 0:02:05]} 17. Bf4 {[%clk 0:02:20]}  g5 {[%clk 0:02:04]} 18. Bg3 {[%clk 0:02:18]}  Bg7 {[%clk 0:02:04]} 19. h3 {[%clk 0:02:07]}  Ne5 {[%clk 0:02:02]} 20. Bxe5 {[%clk 0:02:04]}  dxe5 {[%clk 0:01:59]} 21. Nh2 {[%clk 0:01:55]}  f6 {[%clk 0:01:55]} 22. Red1 {[%clk 0:01:48]}  Bf8 {[%clk 0:01:51]} 23. Ng4 {[%clk 0:01:48]}  Kg7 {[%clk 0:01:29]} 24. Nce3 {[%clk 0:01:47]}  Nf7 {[%clk 0:01:25]} 25. Nf5+ {[%clk 0:01:47]}  Kg6 {[%clk 0:01:25]} 26. Qf3 {[%clk 0:01:31]}  Be7 {[%clk 0:01:22]} 27. Rac1 {[%clk 0:01:18]}  h5 {[%clk 0:01:17]} 28. Nge3 {[%clk 0:01:03]}  Bb4 {[%clk 0:00:54]} 29. d6 {[%clk 0:00:39]}  Bxd6 {[%clk 0:00:50]} 30. Nd5 {[%clk 0:00:39]}  Qe6 {[%clk 0:00:31]} 31. Nxd6 {[%clk 0:00:22]}  cxd6 {[%clk 0:00:32]} 32. Nc7 {[%clk 0:00:14]}  Qd7 {[%clk 0:00:31]} 33. Nxa8 {[%clk 0:00:13]}  Rxa8 {[%clk 0:00:32]} 34. Rc3 {[%clk 0:00:11]}  Re8 {[%clk 0:00:30]} 35. Rdc1 {[%clk 0:00:11]}  Re7 {[%clk 0:00:18]} 36. Qd3 {[%clk 0:00:11]}  Nd8 {[%clk 0:00:17]} 37. Rc7 {[%clk 0:00:08]}  Qe6 {[%clk 0:00:15]} 38. Rxe7 {[%clk 0:00:09]}  Qxe7 {[%clk 0:00:15]} 39. Qc4 {[%clk 0:00:10]}  Nc6 {[%clk 0:00:15]} 40. b4 {[%clk 0:00:10]}  Nd4 {[%clk 0:00:14]} 41. Qg8+ {[%clk 0:00:10]}  Kh6 {[%clk 0:00:14]} 42. Rc8 {[%clk 0:00:10]}  Ne6 {[%clk 0:00:13]} 43. Qh8+ {[%clk 0:00:10]}  Kg6 {[%clk 0:00:13]} 44. Rg8+ {[%clk 0:00:10]}  Kf7 {[%clk 0:00:13]} 45. Qh7+ {[%clk 0:00:11]}  Ng7 {[%clk 0:00:14]} 46. Rxg7+ {[%clk 0:00:11]}  Ke6 {[%clk 0:00:14]} 47. Rxe7# {[%clk 0:00:12]} 1-0


[Site "https://www.chess.com"]

[Event "Titled Tuesday Blitz July 05 Late 2022"]
[White "Todorovic, Bojan"]
[Black "Sanchez Alvares, Kelvin Antonio"]
[WhiteFideId "917087"]
[BlackFideId "3906680"]
[WhiteElo "2266"]
[BlackElo "2193"]
[Result "1-0"]
[Round "06"]
[TimeControl "180+1"]
[Date "2022.07.06"]
[WhiteClock "0:00:05"]
[BlackClock "0:00:25"]

1. Nf3 {[%clk 0:02:59]}  d5 {[%clk 0:02:59]} 2. c4 {[%clk 0:02:59]}  c6 {[%clk 0:02:58]} 3. e3 {[%clk 0:02:57]}  Nf6 {[%clk 0:02:58]} 4. b3 {[%clk 0:02:56]}  Bf5 {[%clk 0:02:56]} 5. Bb2 {[%clk 0:02:52]}  e6 {[%clk 0:02:57]} 6. Nc3 {[%clk 0:02:49]}  Nbd7 {[%clk 0:02:56]} 7. Be2 {[%clk 0:02:45]}  Bd6 {[%clk 0:02:55]} 8. O-O {[%clk 0:02:37]}  Qe7 {[%clk 0:02:54]} 9. d4 {[%clk 0:02:33]}  O-O {[%clk 0:02:53]} 10. Nh4 {[%clk 0:02:22]}  Bg6 {[%clk 0:02:53]} 11. Nxg6 {[%clk 0:02:21]}  hxg6 {[%clk 0:02:50]} 12. Bf3 {[%clk 0:02:02]}  dxc4 {[%clk 0:02:42]} 13. bxc4 {[%clk 0:02:02]}  e5 {[%clk 0:02:41]} 14. g3 {[%clk 0:02:02]}  Rfd8 {[%clk 0:02:37]} 15. Qb3 {[%clk 0:01:56]}  Rab8 {[%clk 0:02:35]} 16. Rfe1 {[%clk 0:01:55]}  a6 {[%clk 0:02:30]} 17. a4 {[%clk 0:01:53]}  a5 {[%clk 0:02:27]} 18. Ba3 {[%clk 0:01:42]}  Bxa3 {[%clk 0:02:23]} 19. Qxa3 {[%clk 0:01:42]}  Qb4 {[%clk 0:02:20]} 20. Qxb4 {[%clk 0:01:34]}  axb4 {[%clk 0:02:19]} 21. Ne2 {[%clk 0:01:34]}  exd4 {[%clk 0:02:16]} 22. exd4 {[%clk 0:01:31]}  Nb6 {[%clk 0:02:16]} 23. Rec1 {[%clk 0:01:26]}  Ra8 {[%clk 0:02:09]} 24. a5 {[%clk 0:01:25]}  Nbd7 {[%clk 0:02:07]} 25. a6 {[%clk 0:01:23]}  Rxa6 {[%clk 0:02:05]} 26. Rxa6 {[%clk 0:01:22]}  bxa6 {[%clk 0:02:06]} 27. Bxc6 {[%clk 0:01:22]}  Nb6 {[%clk 0:02:00]} 28. c5 {[%clk 0:00:34]}  Nbd5 {[%clk 0:01:55]} 29. Ra1 {[%clk 0:00:33]}  Nc3 {[%clk 0:01:47]} 30. Nxc3 {[%clk 0:00:20]}  bxc3 {[%clk 0:01:47]} 31. Rc1 {[%clk 0:00:19]}  Rxd4 {[%clk 0:01:45]} 32. Rxc3 {[%clk 0:00:19]}  Kf8 {[%clk 0:01:41]} 33. Bb7 {[%clk 0:00:18]}  Ne4 {[%clk 0:01:23]} 34. Rc1 {[%clk 0:00:13]}  Rb4 {[%clk 0:01:13]} 35. c6 {[%clk 0:00:13]}  Nd6 {[%clk 0:01:07]} 36. Bxa6 {[%clk 0:00:12]}  Rb6 {[%clk 0:01:04]} 37. Bf1 {[%clk 0:00:11]}  Nc8 {[%clk 0:01:02]} 38. Bg2 {[%clk 0:00:10]}  Ke7 {[%clk 0:01:01]} 39. Rd1 {[%clk 0:00:10]}  Nd6 {[%clk 0:01:00]} 40. h4 {[%clk 0:00:10]}  Rb2 {[%clk 0:00:58]} 41. Bf3 {[%clk 0:00:08]}  Rc2 {[%clk 0:00:58]} 42. Kg2 {[%clk 0:00:08]}  f5 {[%clk 0:00:58]} 43. Rd4 {[%clk 0:00:07]}  Ke6 {[%clk 0:00:54]} 44. Bd1 {[%clk 0:00:07]}  Rc3 {[%clk 0:00:53]} 45. Ba4 {[%clk 0:00:07]}  Ke5 {[%clk 0:00:52]} 46. Rb4 {[%clk 0:00:07]}  Ra3 {[%clk 0:00:44]} 47. Bb5 {[%clk 0:00:06]}  Rc3 {[%clk 0:00:41]} 48. Ba4 {[%clk 0:00:06]}  Ra3 {[%clk 0:00:35]} 49. Bb3 {[%clk 0:00:06]}  Ra1 {[%clk 0:00:31]} 50. Rb6 {[%clk 0:00:05]}  Rc1 {[%clk 0:00:29]} 51. Ba4 {[%clk 0:00:05]}  Rc4 {[%clk 0:00:26]} 52. Ra6 {[%clk 0:00:05]}  Kd5 {[%clk 0:00:25]} 53. Bb3 {[%clk 0:00:05]} 1-0


[Site "https://www.chess.com"]

[Event "Titled Tuesday Blitz July 05 Late 2022"]
[White "Vasquez Schroeder, Rodrigo"]
[Black "Vovk, Orest"]
[WhiteFideId "3400042"]
[BlackFideId "14113490"]
[WhiteElo "2567"]
[BlackElo "2203"]
[Result "1-0"]
[Round "06"]
[TimeControl "180+1"]
[Date "2022.07.05"]
[WhiteClock "0:00:19"]
[BlackClock "0:00:01"]

1. e4 {[%clk 0:03:00]}  g5 {[%clk 0:02:50]} 2. d4 {[%clk 0:02:58]}  g4 {[%clk 0:02:49]} 3. c3 {[%clk 0:02:54]}  d5 {[%clk 0:02:43]} 4. e5 {[%clk 0:02:51]}  c5 {[%clk 0:02:39]} 5. Be3 {[%clk 0:02:44]}  Nc6 {[%clk 0:02:38]} 6. h3 {[%clk 0:02:39]}  h5 {[%clk 0:02:29]} 7. hxg4 {[%clk 0:02:31]}  Bxg4 {[%clk 0:02:27]} 8. Be2 {[%clk 0:02:32]}  Bxe2 {[%clk 0:02:25]} 9. Nxe2 {[%clk 0:02:31]}  Qb6 {[%clk 0:02:21]} 10. Qd2 {[%clk 0:02:20]}  cxd4 {[%clk 0:02:15]} 11. cxd4 {[%clk 0:02:20]}  O-O-O {[%clk 0:02:13]} 12. Nbc3 {[%clk 0:02:18]}  e6 {[%clk 0:02:10]} 13. Nf4 {[%clk 0:02:11]}  h4 {[%clk 0:02:08]} 14. g3 {[%clk 0:02:09]}  Be7 {[%clk 0:01:57]} 15. Ng2 {[%clk 0:02:01]}  h3 {[%clk 0:01:53]} 16. Nf4 {[%clk 0:02:01]}  h2 {[%clk 0:01:53]} 17. O-O-O {[%clk 0:01:57]}  Bb4 {[%clk 0:01:48]} 18. a3 {[%clk 0:01:52]}  Na5 {[%clk 0:01:45]} 19. Qc2 {[%clk 0:01:52]}  Bxc3 {[%clk 0:01:42]} 20. Qxc3+ {[%clk 0:01:51]}  Kb8 {[%clk 0:01:38]} 21. Kb1 {[%clk 0:01:51]}  Rc8 {[%clk 0:01:32]} 22. Qb4 {[%clk 0:01:51]}  Qxb4 {[%clk 0:01:26]} 23. axb4 {[%clk 0:01:51]}  Nc4 {[%clk 0:01:27]} 24. Bc1 {[%clk 0:01:44]}  Ne7 {[%clk 0:01:24]} 25. g4 {[%clk 0:01:40]}  Rcg8 {[%clk 0:01:10]} 26. f3 {[%clk 0:01:40]}  Nc6 {[%clk 0:01:04]} 27. b5 {[%clk 0:01:29]}  Ne7 {[%clk 0:00:57]} 28. Nh5 {[%clk 0:01:24]}  a6 {[%clk 0:00:41]} 29. bxa6 {[%clk 0:01:17]}  bxa6 {[%clk 0:00:41]} 30. Rxh2 {[%clk 0:01:18]}  Ka7 {[%clk 0:00:40]} 31. b3 {[%clk 0:01:17]}  Rb8 {[%clk 0:00:40]} 32. Ka2 {[%clk 0:01:18]}  Na5 {[%clk 0:00:35]} 33. Ba3 {[%clk 0:01:17]}  Nec6 {[%clk 0:00:34]} 34. Rb2 {[%clk 0:01:01]}  Nb4+ {[%clk 0:00:19]} 35. Kb1 {[%clk 0:01:01]}  Rhc8 {[%clk 0:00:18]} 36. Bxb4 {[%clk 0:00:41]}  Rxb4 {[%clk 0:00:17]} 37. Rd3 {[%clk 0:00:40]}  Rcb8 {[%clk 0:00:13]} 38. Ka2 {[%clk 0:00:39]}  Nc4 {[%clk 0:00:10]} 39. Rc2 {[%clk 0:00:37]}  Na5 {[%clk 0:00:08]} 40. Rcc3 {[%clk 0:00:38]}  R8b5 {[%clk 0:00:07]} 41. Nf6 {[%clk 0:00:34]}  Nb7 {[%clk 0:00:05]} 42. Ne8 {[%clk 0:00:29]}  Ra5+ {[%clk 0:00:04]} 43. Kb2 {[%clk 0:00:30]}  Rb6 {[%clk 0:00:03]} 44. Rc7 {[%clk 0:00:27]}  Ra4 {[%clk 0:00:02]} 45. Nd6 {[%clk 0:00:25]}  Rab4 {[%clk 0:00:01]} 46. Nc8+ {[%clk 0:00:21]}  Kb8 {[%clk 0:00:01]} 47. Nxb6 {[%clk 0:00:21]}  Kxc7 {[%clk 0:00:02]} 48. Na4 {[%clk 0:00:21]}  Na5 {[%clk 0:00:01]} 49. Nc5 {[%clk 0:00:20]}  Rb8 {[%clk 0:00:01]} 50. Nxa6+ {[%clk 0:00:19]} 1-0


[Site "https://www.chess.com"]

[Event "Titled Tuesday Blitz July 05 Late 2022"]
[White "Veiga, Jose Francisco R P Neves"]
[Black "Premnath, R."]
[WhiteFideId "1930087"]
[BlackFideId "5021928"]
[WhiteElo "2288"]
[BlackElo "2621"]
[Result "1-0"]
[Round "06"]
[TimeControl "180+1"]
[Date "2022.07.06"]
[WhiteClock "0:00:11"]
[BlackClock "0:00:06"]

1. e4 {[%clk 0:03:00]}  c5 {[%clk 0:02:58]} 2. Nf3 {[%clk 0:03:00]}  d6 {[%clk 0:02:58]} 3. Bb5+ {[%clk 0:03:00]}  Bd7 {[%clk 0:02:58]} 4. Bxd7+ {[%clk 0:03:00]}  Qxd7 {[%clk 0:02:59]} 5. O-O {[%clk 0:03:01]}  Nc6 {[%clk 0:02:59]} 6. c3 {[%clk 0:03:01]}  Nf6 {[%clk 0:02:57]} 7. Re1 {[%clk 0:03:02]}  e6 {[%clk 0:02:53]} 8. d4 {[%clk 0:03:00]}  cxd4 {[%clk 0:02:54]} 9. cxd4 {[%clk 0:03:01]}  d5 {[%clk 0:02:54]} 10. e5 {[%clk 0:03:02]}  Ne4 {[%clk 0:02:54]} 11. Nbd2 {[%clk 0:03:02]}  Nxd2 {[%clk 0:02:54]} 12. Bxd2 {[%clk 0:03:03]}  Be7 {[%clk 0:02:54]} 13. Rc1 {[%clk 0:03:03]}  O-O {[%clk 0:02:55]} 14. Rc3 {[%clk 0:03:03]}  Rac8 {[%clk 0:02:40]} 15. a3 {[%clk 0:02:58]}  Rc7 {[%clk 0:02:32]} 16. h4 {[%clk 0:02:53]}  h6 {[%clk 0:02:28]} 17. Rd3 {[%clk 0:02:50]}  Rfc8 {[%clk 0:02:28]} 18. Nh2 {[%clk 0:02:41]}  Bf8 {[%clk 0:02:15]} 19. Ng4 {[%clk 0:02:28]}  Qd8 {[%clk 0:02:11]} 20. Rg3 {[%clk 0:02:05]}  Kh8 {[%clk 0:01:22]} 21. Nxh6 {[%clk 0:00:58]}  gxh6 {[%clk 0:01:08]} 22. Qg4 {[%clk 0:00:57]}  Ne7 {[%clk 0:01:08]} 23. Ree3 {[%clk 0:00:23]}  Rc2 {[%clk 0:00:56]} 24. Ref3 {[%clk 0:00:17]}  Qe8 {[%clk 0:00:47]} 25. Bxh6 {[%clk 0:00:12]}  Bxh6 {[%clk 0:00:37]} 26. Qh5 {[%clk 0:00:11]}  Rc1+ {[%clk 0:00:32]} 27. Kh2 {[%clk 0:00:10]}  Ng6 {[%clk 0:00:09]} 28. Qxh6+ {[%clk 0:00:09]}  Kg8 {[%clk 0:00:09]} 29. h5 {[%clk 0:00:08]}  R8c7 {[%clk 0:00:05]} 30. hxg6 {[%clk 0:00:08]}  fxg6 {[%clk 0:00:06]} 31. Rxg6+ {[%clk 0:00:08]}  Qxg6 {[%clk 0:00:06]} 32. Qxg6+ {[%clk 0:00:09]}  Rg7 {[%clk 0:00:06]} 33. Qe8+ {[%clk 0:00:10]}  Kh7 {[%clk 0:00:06]} 34. Rh3# {[%clk 0:00:11]} 1-0


[Site "https://www.chess.com"]

[Event "Titled Tuesday Blitz July 05 Late 2022"]
[White "Wachinger, Nikolas"]
[Black "Goncalves, Davi Sulzbacher"]
[WhiteFideId "12962791"]
[BlackFideId "2154510"]
[WhiteElo "2253"]
[BlackElo "2107"]
[Result "0-1"]
[Round "06"]
[TimeControl "180+1"]
[Date "2022.07.06"]
[WhiteClock "0:00:03"]
[BlackClock "0:00:11"]

1. d4 {[%clk 0:03:00]}  Nf6 {[%clk 0:02:59]} 2. Nf3 {[%clk 0:03:01]}  e6 {[%clk 0:03:00]} 3. Bf4 {[%clk 0:03:00]}  c5 {[%clk 0:03:00]} 4. e3 {[%clk 0:03:00]}  b6 {[%clk 0:03:00]} 5. Nbd2 {[%clk 0:02:51]}  Bb7 {[%clk 0:03:00]} 6. Bd3 {[%clk 0:02:51]}  Be7 {[%clk 0:03:00]} 7. h3 {[%clk 0:02:52]}  O-O {[%clk 0:03:00]} 8. O-O {[%clk 0:02:51]}  Nc6 {[%clk 0:03:00]} 9. c3 {[%clk 0:02:49]}  d5 {[%clk 0:02:56]} 10. Ne5 {[%clk 0:02:48]}  Nxe5 {[%clk 0:02:52]} 11. Bxe5 {[%clk 0:02:49]}  Nd7 {[%clk 0:02:52]} 12. Bh2 {[%clk 0:02:24]}  f5 {[%clk 0:02:47]} 13. a4 {[%clk 0:02:23]}  Nf6 {[%clk 0:02:38]} 14. a5 {[%clk 0:02:23]}  bxa5 {[%clk 0:02:36]} 15. Qa4 {[%clk 0:02:22]}  Bd6 {[%clk 0:02:29]} 16. Qxa5 {[%clk 0:02:15]}  Bxh2+ {[%clk 0:02:25]} 17. Kxh2 {[%clk 0:02:15]}  Qd6+ {[%clk 0:02:17]} 18. Kg1 {[%clk 0:02:09]}  c4 {[%clk 0:02:13]} 19. Bc2 {[%clk 0:02:07]}  Ne4 {[%clk 0:02:09]} 20. Nf3 {[%clk 0:02:07]}  Qb6 {[%clk 0:02:06]} 21. Bxe4 {[%clk 0:01:48]}  fxe4 {[%clk 0:02:03]} 22. Ne5 {[%clk 0:01:47]}  Rfd8 {[%clk 0:01:27]} 23. Ra2 {[%clk 0:01:34]}  Rd6 {[%clk 0:01:19]} 24. Qxb6 {[%clk 0:01:29]}  Rxb6 {[%clk 0:01:16]} 25. Nd7 {[%clk 0:01:29]}  Rb5 {[%clk 0:01:16]} 26. Nc5 {[%clk 0:01:29]}  Kf7 {[%clk 0:01:16]} 27. Rfa1 {[%clk 0:01:23]}  a5 {[%clk 0:01:16]} 28. Kf1 {[%clk 0:00:47]}  Bc8 {[%clk 0:01:12]} 29. Ke1 {[%clk 0:00:43]}  e5 {[%clk 0:01:11]} 30. Kd2 {[%clk 0:00:38]}  Ke7 {[%clk 0:01:07]} 31. Kc1 {[%clk 0:00:33]}  Bf5 {[%clk 0:00:57]} 32. Ra3 {[%clk 0:00:29]}  Kd6 {[%clk 0:00:44]} 33. b3 {[%clk 0:00:27]}  exd4 {[%clk 0:00:39]} 34. cxd4 {[%clk 0:00:27]}  cxb3 {[%clk 0:00:34]} 35. Rxb3 {[%clk 0:00:28]}  Rxb3 {[%clk 0:00:34]} 36. Nxb3 {[%clk 0:00:29]}  a4 {[%clk 0:00:32]} 37. Nc5 {[%clk 0:00:29]}  a3 {[%clk 0:00:33]} 38. Kc2 {[%clk 0:00:26]}  Bd7 {[%clk 0:00:26]} 39. Kb3 {[%clk 0:00:25]}  Bb5 {[%clk 0:00:20]} 40. Rxa3 {[%clk 0:00:25]}  Bc4+ {[%clk 0:00:20]} 41. Kb2 {[%clk 0:00:26]}  Rf8 {[%clk 0:00:20]} 42. Rc3 {[%clk 0:00:18]}  Rxf2+ {[%clk 0:00:19]} 43. Rc2 {[%clk 0:00:19]}  Rf1 {[%clk 0:00:19]} 44. Nxe4+ {[%clk 0:00:19]}  dxe4 {[%clk 0:00:19]} 45. Rxc4 {[%clk 0:00:19]}  Re1 {[%clk 0:00:18]} 46. Rc3 {[%clk 0:00:16]}  Re2+ {[%clk 0:00:19]} 47. Kb3 {[%clk 0:00:13]}  Rxg2 {[%clk 0:00:19]} 48. Kc4 {[%clk 0:00:14]}  Rg3 {[%clk 0:00:19]} 49. Ra3 {[%clk 0:00:13]}  Rxh3 {[%clk 0:00:19]} 50. Ra6+ {[%clk 0:00:14]}  Ke7 {[%clk 0:00:19]} 51. Ra3 {[%clk 0:00:12]}  h5 {[%clk 0:00:18]} 52. d5 {[%clk 0:00:11]}  h4 {[%clk 0:00:16]} 53. Kd4 {[%clk 0:00:11]}  Rg3 {[%clk 0:00:13]} 54. Kxe4 {[%clk 0:00:11]}  h3 {[%clk 0:00:13]} 55. Ra1 {[%clk 0:00:09]}  h2 {[%clk 0:00:13]} 56. Rh1 {[%clk 0:00:06]}  Rg2 {[%clk 0:00:13]} 57. Ke5 {[%clk 0:00:05]}  g5 {[%clk 0:00:12]} 58. e4 {[%clk 0:00:03]}  g4 {[%clk 0:00:11]} 0-1


[Site "https://www.chess.com"]

[Event "Titled Tuesday Blitz July 05 Late 2022"]
[White "Adewumi, Tanitoluwa"]
[Black "Samsonkin, Artiom"]
[WhiteFideId "30966396"]
[BlackFideId "13503111"]
[WhiteElo "2576"]
[BlackElo "2513"]
[Result "0-1"]
[Round "07"]
[TimeControl "180+1"]
[Date "2022.07.05"]
[WhiteClock "0:00:02"]
[BlackClock "0:00:07"]

1. e4 {[%clk 0:03:00]}  d5 {[%clk 0:02:51]} 2. exd5 {[%clk 0:02:59]}  Qxd5 {[%clk 0:02:51]} 3. Nc3 {[%clk 0:02:58]}  Qa5 {[%clk 0:02:52]} 4. d4 {[%clk 0:02:53]}  Nf6 {[%clk 0:02:51]} 5. Nf3 {[%clk 0:02:52]}  Bg4 {[%clk 0:02:51]} 6. h3 {[%clk 0:02:46]}  Bxf3 {[%clk 0:02:49]} 7. Qxf3 {[%clk 0:02:47]}  c6 {[%clk 0:02:48]} 8. Bc4 {[%clk 0:02:44]}  e6 {[%clk 0:02:47]} 9. O-O {[%clk 0:02:42]}  Nbd7 {[%clk 0:02:43]} 10. Bf4 {[%clk 0:02:40]}  Be7 {[%clk 0:02:33]} 11. Rfe1 {[%clk 0:02:33]}  O-O {[%clk 0:02:27]} 12. Rad1 {[%clk 0:02:33]}  Rad8 {[%clk 0:02:07]} 13. Qg3 {[%clk 0:02:09]}  Nh5 {[%clk 0:01:45]} 14. Bc7 {[%clk 0:02:07]}  Nxg3 {[%clk 0:01:46]} 15. Bxa5 {[%clk 0:02:04]}  b6 {[%clk 0:01:46]} 16. fxg3 {[%clk 0:02:02]}  bxa5 {[%clk 0:01:46]} 17. Ne4 {[%clk 0:01:57]}  Nb6 {[%clk 0:01:31]} 18. Be2 {[%clk 0:01:51]}  f5 {[%clk 0:01:12]} 19. Nc5 {[%clk 0:01:48]}  Kf7 {[%clk 0:00:48]} 20. Bf3 {[%clk 0:01:23]}  Rxd4 {[%clk 0:00:41]} 21. Nxe6 {[%clk 0:01:11]}  Rxd1 {[%clk 0:00:41]} 22. Bxd1 {[%clk 0:01:09]}  Re8 {[%clk 0:00:38]} 23. Nf4 {[%clk 0:00:47]}  Na4 {[%clk 0:00:29]} 24. b3 {[%clk 0:00:32]}  Nc3 {[%clk 0:00:29]} 25. Bf3 {[%clk 0:00:30]}  Bc5+ {[%clk 0:00:16]} 26. Kf1 {[%clk 0:00:31]}  Rxe1+ {[%clk 0:00:16]} 27. Kxe1 {[%clk 0:00:32]}  Nxa2 {[%clk 0:00:17]} 28. Bxc6 {[%clk 0:00:31]}  Nb4 {[%clk 0:00:18]} 29. Bf3 {[%clk 0:00:20]}  Nxc2+ {[%clk 0:00:18]} 30. Kd2 {[%clk 0:00:20]}  Nd4 {[%clk 0:00:16]} 31. Bd5+ {[%clk 0:00:20]}  Kf6 {[%clk 0:00:16]} 32. Kd3 {[%clk 0:00:20]}  Bb6 {[%clk 0:00:11]} 33. Bg8 {[%clk 0:00:18]}  Ke5 {[%clk 0:00:07]} 34. Nd5 {[%clk 0:00:12]}  Nxb3 {[%clk 0:00:06]} 35. Nf4 {[%clk 0:00:02]}  Nc5+ {[%clk 0:00:07]} 36. Kc4 {[%clk 0:00:01]}  Ne4 {[%clk 0:00:08]} 37. Bxh7 {[%clk 0:00:01]}  Nxg3 {[%clk 0:00:06]} 38. Kb3 {[%clk 0:00:02]}  Kxf4 {[%clk 0:00:07]} 39. Bxf5 {[%clk 0:00:02]}  Nxf5 {[%clk 0:00:07]} 0-1


[Site "https://www.chess.com"]